bitfinex/quotes_SOLUSD_20241121
["timestamp","ask_amount","ask_price","bid_price","bid_amount"]
[1732231175632,11.89480015,255.98,255.9,11.89480015]
[1732231175843,11.89480015,255.96,255.86,11.89480015]
[1732231176649,23.776884,255.95,255.86,11.89480015]
[1732231177046,23.776884,255.93,255.86,11.89480015]
[1732231177454,3.9074,255.92,255.86,11.89480015]
[1732231178654,3.9074,255.92,255.86,15.80310015]
[1732231180234,16.2764,255.99,255.9,11.89480015]
[1732231180235,3.9066,255.98,255.9,11.89480015]
[1732231180652,3.9066,255.98,255.88,11.89480015]
[1732231180653,11.89480015,255.97,255.88,11.89480015]
[1732231180959,11.89480015,255.95,255.88,11.89480015]
[1732231181329,11.89480015,255.95,255.86,25.57400015]
[1732231181529,23.776884,255.94,255.86,25.57400015]
[1732231181832,3.9073,255.93,255.86,25.57400015]
[1732231182234,3.9073,255.93,255.86,21.66570015]
[1732231182550,3.9073,255.93,255.86,25.57400015]
[1732231182839,3.9073,255.93,255.86,13.6792]
[1732231183042,7.61475113,255.9,255.82,29.92165113]
[1732231183235,7.61475113,255.9,255.82,17.60535113]
[1732231183236,23.776884,255.89,255.82,17.60535113]
[1732231184138,27.684784,255.89,255.82,17.60535113]
[1732231186848,3.9065,255.98,255.88,7.61475113]
[1732231187055,7.61475113,255.96,255.88,7.61475113]
[1732231187952,3.907,255.95,255.88,7.61475113]
[1732231188141,27.683884,255.95,255.88,7.61475113]
[1732231188856,7.61475113,255.94,255.85,9.771]
[1732231189059,27.684184,255.93,255.85,9.771]
[1732231189240,16.2764,255.99,255.88,7.61475113]
[1732231189441,11.52125113,255.98,255.9,7.61475113]
[1732231190566,11.52125113,255.98,255.9,11.52245113]
[1732231190762,23.776884,255.97,255.9,3.9077]
[1732231190953,23.776884,255.97,255.89,13.6777]
[1732231191253,23.776884,255.97,255.9,7.61475113]
[1732231192061,27.683584,255.97,255.9,7.61475113]
[1732231194351,7.61475113,255.96,255.88,7.61475113]
[1732231195966,3.907,255.95,255.88,11.52275113]
[1732231196972,3.907,255.95,255.89,7.61475113]
[1732231197461,7.61475113,255.94,255.84,20.0]
[1732231197648,7.61475113,255.94,255.87,7.61475113]
[1732231197849,11.52175113,255.95,255.87,7.61475113]
[1732231198645,7.61475113,255.93,255.87,7.61475113]
[1732231198840,7.61475113,255.93,255.83,9.7721]
[1732231198841,7.61475113,255.91,255.84,11.52335113]
[1732231199065,7.61475113,255.91,255.83,17.38685113]
[1732231200163,3.9077,255.9,255.83,17.38685113]
[1732231200368,3.9077,255.9,255.83,21.29565113]
[1732231201053,7.61475113,255.86,255.78,13.6833]
[1732231201251,7.61475113,255.88,255.78,21.29805113]
[1732231201484,23.776884,255.89,255.84,7.61475113]
[1732231201655,23.776884,255.89,255.78,13.6833]
[1732231201656,3.9067,255.97,255.86,7.61475113]
[1732231201847,7.61475113,255.95,255.86,7.61475113]
[1732231202050,23.776884,255.94,255.86,7.61475113]
[1732231202357,23.776884,255.92,255.84,7.61475113]
[1732231203469,3.9076,255.91,255.85,7.61475113]
[1732231204274,3.9076,255.91,255.81,17.38725113]
[1732231204275,31.39163513,255.9,255.81,17.38725113]
[1732231204765,3.9076,255.91,255.83,7.61475113]
[1732231205547,3.9076,255.91,255.83,11.52345113]
[1732231206278,3.9076,255.91,255.83,3.9087]
[1732231206477,31.39163513,255.89,255.81,13.6816]
[1732231206682,3.9076,255.91,255.84,7.61475113]
[1732231206888,16.2764,255.99,255.88,7.61475113]
[1732231207060,3.9065,255.98,255.9,7.61475113]
[1732231208855,7.61475113,255.97,255.9,7.61475113]
[1732231209163,11.52155113,255.97,255.9,7.61475113]
[1732231209463,7.61475113,256.02,255.92,7.61475113]
[1732231210457,3.906,256.01,255.92,11.52205113]
[1732231210675,7.61475113,256.0,255.92,11.52205113]
[1732231211351,3.905,256.08,255.94,7.61475113]
[1732231211561,7.61475113,256.05,255.96,7.61475113]
[1732231212476,11.52025113,256.05,255.97,3.9067]
[1732231214683,23.776884,256.04,255.96,17.38185113]
[1732231214856,7.61475113,256.03,255.96,17.38185113]
[1732231215779,3.9051,256.08,255.96,21.28865113]
[1732231215959,9.7602,256.15,256.0,7.61475113]
[1732231216161,7.61475113,256.09,256.0,7.61475113]
[1732231216682,7.61475113,256.09,256.0,11.52085113]
[1732231217181,11.51925113,256.12,256.03,7.61475113]
[1732231218162,23.776884,256.11,256.03,7.61475113]
[1732231220062,27.681484,256.11,256.03,7.61475113]
[1732231221992,23.776884,256.12,256.03,11.52045113]
[1732231222966,16.4285,256.16,256.05,7.61475113]
[1732231223171,23.776884,256.14,256.05,7.61475113]
[1732231223467,16.4285,256.34,256.13,7.61475113]
[1732231223672,20.3295,256.34,256.28,7.61475113]
[1732231223966,20.3295,256.34,256.3,7.61475113]
[1732231224292,20.3295,256.34,256.28,7.61475113]
[1732231226088,23.776884,256.33,256.28,7.61475113]
[1732231226763,23.776884,256.33,256.29,11.85927644]
[1732231227279,11.85927644,256.41,256.32,11.85927644]
[1732231227469,3.9001,256.4,256.35,11.85927644]
[1732231227667,11.85927644,256.47,256.39,11.85927644]
[1732231227911,3.8989,256.48,256.41,11.85927644]
[1732231228183,28.22037644,256.49,256.41,11.85927644]
[1732231228184,20.2598,256.49,256.41,11.85927644]
[1732231228371,20.2598,256.49,256.43,11.85927644]
[1732231229869,23.776884,256.48,256.43,11.85927644]
[1732231230268,27.675884,256.48,256.43,11.85927644]
[1732231230564,23.776884,256.46,256.39,11.85927644]
[1732231231785,23.776884,256.46,256.35,6.1578]
[1732231231786,11.85927644,256.43,256.35,18.01707644]
[1732231231998,23.776884,256.42,256.33,11.85927644]
[1732231232291,11.85927644,256.41,256.33,11.85927644]
[1732231232883,15.75927644,256.41,256.33,11.85927644]
[1732231233281,11.85927644,256.39,256.27,3.9021]
[1732231233472,11.85927644,256.34,256.22,32.0172]
[1732231233675,23.776884,256.33,256.25,11.85927644]
[1732231233878,23.776884,256.33,256.27,11.85927644]
[1732231234193,11.85927644,256.36,256.29,11.85927644]
[1732231234375,11.85927644,256.36,256.27,11.85927644]
[1732231235474,23.776884,256.36,256.29,11.85927644]
[1732231236272,23.776884,256.36,256.31,11.85927644]
[1732231236779,16.3611,256.38,256.31,11.85927644]
[1732231236969,16.3611,256.38,256.23,11.85927644]
[1732231236970,23.776884,256.41,256.35,11.85927644]
[1732231237168,11.85927644,256.4,256.33,11.85927644]
[1732231237595,23.776884,256.39,256.33,11.85927644]
[1732231237901,23.776884,256.39,256.31,11.85927644]
[1732231238075,3.9004,256.38,256.31,11.85927644]
[1732231238276,23.776884,256.37,256.29,11.85927644]
[1732231238475,11.85927644,256.36,256.29,11.85927644]
[1732231238977,3.9007,256.36,256.29,11.85927644]
[1732231239370,23.776884,256.37,256.29,11.85927644]
[1732231239572,3.9,256.42,256.35,11.85927644]
[1732231240499,3.9,256.42,256.37,11.85927644]
[1732231240885,23.776884,256.41,256.37,11.85927644]
[1732231241301,23.776884,256.41,256.35,11.85927644]
[1732231241895,27.676984,256.41,256.35,11.85927644]
[1732231242684,27.6171077,256.41,256.35,11.85927644]
[1732231247999,27.6171077,256.41,256.37,11.85927644]
[1732231248983,27.6171077,256.41,256.35,11.85927644]
[1732231249805,27.6171077,256.41,256.37,11.85927644]
[1732231254613,27.6171077,256.41,256.35,11.85927644]
[1732231255008,27.6171077,256.41,256.36,11.85927644]
[1732231256607,27.6171077,256.41,256.36,7.58549837]
[1732231256793,27.6171077,256.41,256.33,3.9011]
[1732231256794,27.6171077,256.41,256.38,7.58549837]
[1732231257804,27.6171077,256.41,256.34,3.901]
[1732231258009,27.6171077,256.41,256.37,7.58549837]
[1732231258192,27.6171077,256.41,256.38,7.58549837]
[1732231258709,11.48419837,256.49,256.4,7.58549837]
[1732231258889,11.48419837,256.49,256.41,7.58549837]
[1732231259895,3.8987,256.49,256.44,7.58549837]
[1732231260818,11.84430155,256.58,256.48,11.84430155]
[1732231261111,13.6403,256.59,256.52,11.84430155]
[1732231261112,3.8972,256.59,256.52,11.84430155]
[1732231262215,23.776884,256.58,256.52,11.84430155]
[1732231263098,27.674084,256.59,256.52,11.84430155]
[1732231264009,23.776884,256.57,256.5,11.84430155]
[1732231264993,3.8977,256.56,256.5,11.84430155]
[1732231265907,23.776884,256.55,256.47,11.84430155]
[1732231266097,23.776884,256.53,256.43,6.3506]
[1732231266291,23.776884,256.53,256.46,11.84430155]
[1732231267120,3.8983,256.52,256.46,11.84430155]
[1732231268712,11.84430155,256.48,256.4,11.84430155]
[1732231269213,3.899,256.47,256.4,11.84430155]
[1732231269715,3.899,256.47,256.4,15.74440155]
[1732231270092,3.899,256.47,256.42,11.84430155]
[1732231270300,27.675684,256.49,256.42,11.84430155]
[1732231270804,27.675684,256.49,256.44,11.84430155]
[1732231272313,3.8974,256.58,256.48,11.84430155]
[1732231272619,3.8974,256.58,256.5,11.84430155]
[1732231273414,3.8974,256.58,256.52,11.84430155]
[1732231273589,23.776884,256.57,256.52,11.84430155]
[1732231275319,3.8974,256.58,256.52,11.84430155]
[1732231275320,27.674284,256.58,256.52,11.84430155]
[1732231275522,27.674284,256.58,256.54,11.84430155]
[1732231275697,3.8974,256.58,256.54,11.84430155]
[1732231276416,3.8971,256.6,256.54,11.84430155]
[1732231277107,3.8967,256.63,256.56,11.84430155]
[1732231277417,3.8967,256.63,256.58,11.84430155]
[1732231277805,10.20118773,256.63,256.58,11.84430155]
[1732231278002,3.8967,256.63,256.58,11.84430155]
[1732231278898,15.74030155,256.67,256.58,11.84430155]
[1732231279123,15.74030155,256.67,256.6,11.84430155]
[1732231279297,3.896,256.67,256.6,11.84430155]
[1732231279626,15.74030155,256.67,256.6,11.84430155]
[1732231279795,15.74030155,256.67,256.58,11.84430155]
[1732231280497,3.8963,256.65,256.58,11.84430155]
[1732231282924,3.8963,256.65,256.56,11.84430155]
[1732231284299,3.8963,256.65,256.56,15.74190155]
[1732231284517,3.8963,256.65,256.58,11.84430155]
[1732231286306,3.8963,256.65,256.6,11.84430155]
[1732231290622,3.8963,256.65,256.59,7.57162352]
[1732231290926,9.9516007,256.71,256.59,7.57162352]
[1732231291127,0.2127007,256.71,256.67,7.57162352]
[1732231291620,0.2127007,256.71,256.6,6.5964]
[1732231291818,0.2127007,256.71,256.65,7.57162352]
[1732231292325,0.2127007,256.71,256.67,7.57162352]
[1732231292528,4.1081007,256.71,256.6,6.5964]
[1732231292706,4.1081007,256.71,256.54,6.34001584]
[1732231292707,11.82802076,256.7,256.61,11.82802076]
[1732231293111,11.82802076,256.68,256.61,11.82802076]
[1732231293311,11.82802076,256.68,256.59,11.82802076]
[1732231293629,11.82802076,256.66,256.57,11.82802076]
[1732231293834,11.82802076,256.66,256.59,11.82802076]
[1732231295409,13.8467007,256.71,256.57,11.82802076]
[1732231295410,11.82802076,256.64,256.57,11.82802076]
[1732231296126,11.82802076,256.64,256.55,13.6424]
[1732231296127,11.82802076,256.64,256.55,21.57262076]
[1732231298133,3.8966,256.63,256.55,21.57262076]
[1732231298534,3.8966,256.63,256.55,25.47042076]
[1732231299331,11.82802076,256.62,256.55,21.57262076]
[1732231300136,11.82802076,256.62,256.55,11.82802076]
[1732231300322,3.8969,256.61,256.55,11.82802076]
[1732231300841,11.82802076,256.56,256.47,11.82802076]
[1732231301134,11.82802076,256.54,256.47,11.82802076]
[1732231301814,11.82802076,256.54,256.45,11.82802076]
[1732231302020,11.82802076,256.49,256.4,6.5519]
[1732231302229,11.82802076,256.47,256.39,11.82802076]
[1732231302529,26.92422076,256.51,256.43,11.82802076]
[1732231302725,3.8987,256.5,256.45,11.82802076]
[1732231304730,15.0962,256.57,256.49,11.82802076]
[1732231304936,18.9938,256.57,256.53,11.82802076]
[1732231305118,18.9938,256.57,256.51,11.82802076]
[1732231305506,18.9938,256.57,256.49,11.82802076]
[1732231306017,11.82802076,256.54,256.47,11.82802076]
[1732231306228,3.8983,256.52,256.45,11.82802076]
[1732231307707,15.72632076,256.52,256.45,11.82802076]
[1732231308339,15.72632076,256.52,256.43,11.82802076]
[1732231309335,15.72632076,256.52,256.44,11.82802076]
[1732231311451,23.776884,256.51,256.44,11.82802076]
[1732231312619,23.776884,256.51,256.34,6.5519]
[1732231312620,23.776884,256.49,256.4,11.82802076]
[1732231312825,11.82802076,256.48,256.4,11.82802076]
[1732231313225,23.776884,256.47,256.4,11.82802076]
[1732231313535,15.72722076,256.46,256.38,11.82802076]
[1732231313725,30.82342076,256.46,256.38,11.82802076]
[1732231313926,11.82802076,256.44,256.36,11.82802076]
[1732231314934,11.82802076,256.42,256.34,25.48152076]
[1732231315133,15.0962,256.46,256.4,11.82802076]
[1732231315469,15.0962,256.46,256.44,11.82802076]
[1732231315744,15.0962,256.46,256.34,19.5053]
[1732231315745,30.82352076,256.46,256.35,25.48082076]
[1732231315925,11.82802076,256.44,256.35,25.48082076]
[1732231316126,11.82802076,256.44,256.37,11.82802076]
[1732231316633,15.0962,256.46,256.41,11.82802076]
[1732231316935,15.0962,256.46,256.43,11.82802076]
[1732231317517,3.8984,256.51,256.43,11.82802076]
[1732231318335,3.8984,256.51,256.45,11.82802076]
[1732231320320,3.8984,256.51,256.47,11.82802076]
[1732231322352,35.60490476,256.5,256.43,11.82802076]
[1732231322529,11.82802076,256.45,256.37,3.9005]
[1732231322736,11.82802076,256.47,256.4,11.82802076]
[1732231322921,23.776884,256.5,256.42,11.82802076]
[1732231323123,15.72642076,256.51,256.44,11.82802076]
[1732231323320,15.72642076,256.51,256.44,10.85122933]
[1732231323925,11.82802076,256.49,256.42,11.82802076]
[1732231324162,3.8989,256.48,256.4,11.82802076]
[1732231325026,11.82802076,256.47,256.4,11.82802076]
[1732231325361,11.82802076,256.47,256.38,9.751]
[1732231325362,11.82802076,256.45,256.38,11.82802076]
[1732231325850,11.82802076,256.45,256.36,11.82802076]
[1732231326356,23.776884,256.49,256.42,11.82802076]
[1732231327046,3.8984,256.51,256.44,11.82802076]
[1732231328741,26.92422076,256.52,256.44,25.47622076]
[1732231328949,15.0962,256.52,256.49,11.82802076]
[1732231331153,15.0962,256.52,256.44,9.7488]
[1732231331154,3.8984,256.51,256.45,11.82802076]
[1732231331753,3.8984,256.51,256.42,3.8998]
[1732231331754,15.72642076,256.51,256.43,11.82802076]
[1732231332631,11.82802076,256.49,256.41,11.82802076]
[1732231332831,3.8984,256.51,256.45,11.82802076]
[1732231333534,15.0962,256.52,256.49,11.82802076]
[1732231333735,3.8979,256.55,256.49,11.82802076]
[1732231340940,15.8912,256.58,256.49,11.82802076]
[1732231341141,15.8912,256.58,256.39,35.3092]
[1732231341142,15.8912,256.58,256.55,11.82802076]
[1732231341558,6.4634,256.62,256.57,11.82802076]
[1732231341559,3.8968,256.62,256.57,11.82802076]
[1732231341735,3.8968,256.62,256.49,11.82802076]
[1732231341736,3.8968,256.62,256.59,11.82802076]
[1732231343142,3.8968,256.62,256.57,11.82802076]
[1732231344371,3.8968,256.62,256.55,11.82802076]
[1732231344565,3.8968,256.62,256.53,11.82802076]
[1732231345034,3.8968,256.62,256.55,11.82802076]
[1732231346243,11.82802076,256.61,256.51,13.6445]
[1732231346449,11.82802076,256.59,256.46,33.6471]
[1732231346645,11.82802076,256.57,256.49,11.82802076]
[1732231346845,3.8971,256.6,256.52,11.82802076]
[1732231347053,3.8971,256.6,256.54,11.82802076]
[1732231348067,23.776884,256.62,256.54,11.82802076]
[1732231350046,3.8969,256.61,256.56,11.82802076]
[1732231350657,3.8969,256.61,256.56,7.57372035]
[1732231351452,7.57372035,256.59,256.5,13.645]
[1732231351640,7.57372035,256.59,256.51,7.57372035]
[1732231352983,3.8974,256.58,256.51,7.57372035]
[1732231354253,3.8974,256.58,256.53,7.57372035]
[1732231354663,3.8974,256.58,256.51,3.8984]
[1732231354872,3.8974,256.58,256.53,7.57372035]
[1732231357052,3.8974,256.58,256.5,9.7464]
[1732231357269,3.8974,256.58,256.52,7.57372035]
[1732231359267,7.57372035,256.54,256.41,13.65]
[1732231359475,40.177284,256.57,256.43,7.57372035]
[1732231359476,23.776884,256.51,256.43,7.57372035]
[1732231360502,27.675484,256.51,256.43,7.57372035]
[1732231360853,27.675484,256.51,256.43,11.47332035]
[1732231361073,27.675484,256.51,256.43,3.8996]
[1732231366180,3.8977,256.56,256.5,7.57372035]
[1732231366384,3.8968,256.62,256.54,7.57372035]
[1732231366588,3.8968,256.62,256.58,7.57372035]
[1732231367585,19.9724,256.63,256.6,7.57372035]
[1732231367968,19.9724,256.63,256.58,7.57372035]
[1732231368781,19.9724,256.63,256.57,11.83219052]
[1732231371289,11.83219052,256.61,256.53,11.83219052]
[1732231371496,23.776884,256.6,256.51,11.83219052]
[1732231371992,11.83219052,256.59,256.51,11.83219052]
[1732231372393,3.8974,256.58,256.51,11.83219052]
[1732231372875,11.83219052,256.57,256.49,11.83219052]
[1732231374179,3.8977,256.56,256.49,11.83219052]
[1732231374496,23.776884,256.55,256.49,11.83219052]
[1732231375296,35.60907452,256.55,256.47,11.83219052]
[1732231375511,3.898,256.54,256.47,11.83219052]
[1732231375992,3.898,256.54,256.43,9.749]
[1732231375993,51.78877452,256.53,256.45,11.83219052]
[1732231376475,11.83219052,256.51,256.43,11.83219052]
[1732231376678,23.776884,256.46,256.39,11.83219052]
[1732231376879,6.2329,256.52,256.43,11.83219052]
[1732231376880,11.83219052,256.51,256.43,11.83219052]
[1732231377076,6.2329,256.52,256.46,11.83219052]
[1732231377594,6.2329,256.52,256.36,11.83219052]
[1732231377595,3.8986,256.5,256.44,11.83219052]
[1732231382279,23.776884,256.52,256.48,11.83219052]
[1732231382485,20.0779,256.53,256.5,11.83219052]
[1732231383214,3.8976,256.57,256.52,11.83219052]
[1732231384201,3.8976,256.57,256.5,11.83219052]
[1732231384587,23.776884,256.56,256.5,11.83219052]
[1732231384785,23.776884,256.56,256.45,3.8992]
[1732231384786,23.776884,256.56,256.48,11.83219052]
[1732231385290,11.83219052,256.55,256.48,11.83219052]
[1732231385486,23.776884,256.54,256.48,11.83219052]
[1732231385692,23.776884,256.54,256.46,11.83219052]
[1732231386393,23.776884,256.52,256.44,11.83219052]
[1732231387110,23.776884,256.5,256.42,11.83219052]
[1732231388699,23.776884,256.45,256.37,7.58395508]
[1732231389696,3.8995,256.44,256.37,7.58395508]
[1732231389898,11.48345508,256.44,256.37,7.58395508]
[1732231390528,23.776884,256.43,256.35,7.58395508]
[1732231391498,7.58395508,256.4,256.29,9.7544]
[1732231391703,3.9006,256.37,256.3,7.58395508]
[1732231392688,3.9006,256.37,256.31,11.85626203]
[1732231393812,20.4041,256.37,256.31,11.85626203]
[1732231394611,23.776884,256.36,256.29,21.61066203]
[1732231394995,11.85626203,256.33,256.18,13.6622]
[1732231395211,16.5035,256.37,256.31,11.85626203]
[1732231395409,20.4032,256.43,256.35,11.85626203]
[1732231395713,20.4032,256.43,256.38,11.85626203]
[1732231396102,20.4032,256.43,256.36,11.85626203]
[1732231396605,23.776884,256.42,256.36,11.85626203]
[1732231397702,27.676784,256.42,256.36,11.85626203]
[1732231400020,27.676784,256.42,256.3,9.7538]
[1732231400021,27.676784,256.42,256.38,11.85626203]
[1732231402795,16.5035,256.43,256.38,11.85626203]
[1732231402995,19.4872,256.58,256.42,11.85626203]
[1732231402996,16.6022,256.49,256.42,11.85626203]
[1732231403200,16.6022,256.49,256.44,11.85626203]
[1732231403201,3.8989,256.48,256.44,11.85626203]
[1732231404499,23.776884,256.47,256.44,11.85626203]
[1732231405600,3.8991,256.47,256.44,11.85626203]
[1732231407134,3.8991,256.47,256.38,20.0]
[1732231407428,35.63314603,256.46,256.37,13.652]
[1732231407626,35.63314603,256.46,256.38,11.85626203]
[1732231407802,23.776884,256.46,256.38,11.85626203]
[1732231408130,23.776884,256.46,256.4,11.85626203]
[1732231408325,23.776884,256.47,256.4,11.85626203]
[1732231408507,27.675884,256.47,256.4,11.85626203]
[1732231409617,11.85626203,256.46,256.32,20.0]
[1732231409930,11.85626203,256.44,256.37,11.85626203]
[1732231410231,23.776884,256.43,256.35,11.85626203]
[1732231410902,3.8998,256.42,256.35,11.85626203]
[1732231412734,3.8998,256.42,256.36,7.58495502]
[1732231414106,3.8989,256.48,256.4,7.58495502]
[1732231414313,3.8989,256.48,256.42,7.58495502]
[1732231414909,16.6022,256.49,256.42,7.58495502]
[1732231415112,16.6022,256.49,256.44,7.58495502]
[1732231415317,20.5011,256.49,256.44,7.58495502]
[1732231415526,20.5011,256.49,256.36,30.33982008]
[1732231415527,20.5011,256.49,256.42,7.58495502]
[1732231416111,23.776884,256.48,256.42,7.58495502]
[1732231417524,23.776884,256.46,256.38,13.651]
[1732231417717,23.776884,256.46,256.4,7.58495502]
[1732231417924,23.776884,256.46,256.38,9.7507]
[1732231418110,23.776884,256.46,256.4,7.58495502]
[1732231418307,7.58495502,256.44,256.33,9.7527]
[1732231418834,7.58495502,256.44,256.37,7.58495502]
[1732231419023,23.776884,256.43,256.37,7.58495502]
[1732231419610,3.8998,256.42,256.37,7.58495502]
[1732231422415,3.8998,256.42,256.39,7.58495502]
[1732231422620,16.6022,256.49,256.41,7.58495502]
[1732231422829,3.8992,256.47,256.43,7.58495502]
[1732231425412,3.8992,256.47,256.41,7.58495502]
[1732231425914,2.3992,256.47,256.41,7.58495502]
[1732231426231,23.776884,256.48,256.41,7.58495502]
[1732231427633,3.899,256.48,256.43,7.58495502]
[1732231428005,16.6022,256.49,256.43,7.58495502]
[1732231428223,20.501,256.49,256.43,7.58495502]
[1732231431131,23.776884,256.48,256.41,7.58495502]
[1732231432514,3.899,256.47,256.41,7.58495502]
[1732231435551,3.899,256.47,256.43,7.58495502]
[1732231440243,3.899,256.47,256.41,7.58495502]
[1732231443423,0.97469686,256.46,256.41,7.58495502]
[1732231443624,0.97469686,256.46,256.41,11.48485502]
[1732231445049,0.97469686,256.46,256.45,7.58495502]
[1732231446525,0.97469686,256.51,256.45,7.58495502]
[1732231446727,0.97469686,256.51,256.47,7.58495502]
[1732231447749,4.87319686,256.51,256.44,3.8994]
[1732231447933,23.776884,256.5,256.43,7.58495502]
[1732231449049,3.8987,256.49,256.43,7.58495502]
[1732231449427,0.97469686,256.48,256.43,7.58495502]
[1732231449751,0.97469686,256.48,256.43,11.48455502]
[1732231450828,0.97469686,256.48,256.47,7.58495502]
[1732231451251,0.97469686,256.48,256.46,9.7481]
[1732231451456,0.97469686,256.48,256.46,17.33305502]
[1732231452041,4.87359686,256.48,256.42,23.8997]
[1732231452251,4.87359686,256.48,256.42,31.48465502]
[1732231452550,0.97469686,256.48,256.42,31.48465502]
[1732231453652,0.97469686,256.48,256.42,21.23425502]
[1732231455355,0.97469686,256.48,256.44,7.58495502]
[1732231459859,0.97469686,256.48,256.36,36.45732008]
[1732231459860,0.97469686,256.48,256.47,7.58495502]
[1732231460156,15.7404,256.61,256.48,20.0]
[1732231460379,15.7404,256.61,256.58,7.58495502]
[1732231460957,19.6374,256.61,256.58,7.58495502]
[1732231461444,3.8962,256.66,256.59,7.58495502]
[1732231461650,3.8962,256.66,256.62,7.58495502]
[1732231466567,3.8962,256.66,256.6,7.58495502]
[1732231468566,3.8962,256.66,256.58,7.58495502]
[1732231468771,11.48115502,256.66,256.58,7.58495502]
[1732231469064,7.58495502,256.64,256.54,7.58495502]
[1732231469261,7.58495502,256.62,256.54,7.58495502]
[1732231469943,3.8971,256.6,256.54,7.58495502]
[1732231471355,23.776884,256.59,256.46,6.0738]
[1732231471668,23.776884,256.57,256.49,7.58495502]
[1732231472264,7.58495502,256.56,256.49,7.58495502]
[1732231472450,23.776884,256.55,256.49,7.58495502]
[1732231472857,23.776884,256.55,256.47,9.7477]
[1732231473166,23.776884,256.55,256.47,7.58495502]
[1732231473544,3.898,256.54,256.47,7.58495502]
[1732231473955,23.776884,256.53,256.43,23.8996]
[1732231474157,23.776884,256.53,256.45,7.58495502]
[1732231474453,23.776884,256.53,256.47,7.58495502]
[1732231475365,3.8983,256.52,256.47,7.58495502]
[1732231476975,3.8975,256.57,256.47,7.58495502]
[1732231477162,23.776884,256.56,256.49,7.58495502]
[1732231477367,23.776884,256.54,256.49,7.58495502]
[1732231477548,23.776884,256.54,256.46,3.8991]
[1732231477744,23.776884,256.54,256.47,7.58495502]
[1732231477951,23.776884,256.54,256.48,7.58495502]
[1732231478451,3.8981,256.54,256.48,7.58495502]
[1732231478867,23.776884,256.55,256.52,7.58495502]
[1732231479172,23.776884,256.55,256.53,7.58495502]
[1732231479357,23.776884,256.55,256.52,7.58495502]
[1732231480758,3.8975,256.57,256.52,7.58495502]
[1732231480951,31.36183902,256.56,256.46,9.7481]
[1732231481156,31.36183902,256.56,256.5,7.58495502]
[1732231481157,23.776884,256.56,256.5,7.58495502]
[1732231482055,3.8978,256.56,256.5,7.58495502]
[1732231482456,23.776884,256.55,256.5,7.58495502]
[1732231483189,27.674784,256.55,256.5,7.58495502]
[1732231484774,15.8936,256.58,256.5,7.58495502]
[1732231484967,3.8966,256.63,256.56,7.58495502]
[1732231486258,23.776884,256.62,256.56,7.58495502]
[1732231486769,3.8969,256.61,256.54,7.58495502]
[1732231487158,22.0574,256.7,256.6,7.58495502]
[1732231487477,7.58495502,256.69,256.6,7.58495502]
[1732231487677,11.48065502,256.69,256.62,7.58495502]
[1732231487861,11.48065502,256.69,256.51,18.62726386]
[1732231488063,11.48065502,256.69,256.61,7.58495502]
[1732231489570,3.8957,256.69,256.61,7.58495502]
[1732231489883,11.48065502,256.69,256.61,7.58495502]
[1732231490084,23.776884,256.68,256.61,7.58495502]
[1732231490287,27.672884,256.68,256.61,7.58495502]
[1732231493589,7.58495502,256.64,256.52,13.6439]
[1732231494091,23.776884,256.63,256.54,7.58495502]
[1732231494888,27.673584,256.63,256.55,3.8978]
[1732231497986,27.673584,256.63,256.53,20.0]
[1732231498156,27.673584,256.63,256.55,7.58495502]
[1732231498872,15.2289,256.64,256.59,7.58495502]
[1732231499187,3.8961,256.67,256.61,7.58495502]
[1732231501058,3.8961,256.67,256.59,7.58495502]
[1732231501059,11.48105502,256.67,256.59,7.58495502]
[1732231502283,7.58495502,256.65,256.58,3.8973]
[1732231503677,7.58495502,256.61,256.51,19.4924]
[1732231503868,7.58495502,256.61,256.53,9.7453]
[1732231504262,7.58495502,256.59,256.53,9.7453]
[1732231504460,7.58495502,256.55,256.42,15.6557]
[1732231504663,7.58495502,256.53,256.45,7.58495502]
[1732231505691,7.58495502,256.53,256.46,3.8992]
[1732231505879,11.48315502,256.53,256.46,3.8992]
[1732231508073,16.6612,256.58,256.52,7.58495502]
[1732231508887,20.5586,256.58,256.52,7.58495502]
[1732231510996,16.6612,256.58,256.52,11.48315502]
[1732231511793,20.5586,256.58,256.52,7.58495502]
[1732231514267,20.5586,256.58,256.5,7.58495502]
[1732231515786,20.5586,256.58,256.51,3.8984]
[1732231516196,20.5586,256.58,256.52,7.58495502]
[1732231518006,20.7624133,256.58,256.52,7.58495502]
[1732231521408,16.8650133,256.58,256.52,11.48325502]
[1732231524215,28.34746832,256.58,256.52,3.8983]